[Event "Late-Titled-Tuesday-Blitz-December-26-2023"]
[Site "Chess.com"]
[Date "2023.12.26"]
[Round "9"]
[White "norman927"]
[Black "SocoLoco"]
[Result "1-0"]
[WhiteElo "2325"]
[BlackElo "2134"]
[TimeControl "180+1"]
[EndTime "15:42:59 PST"]
[Termination "norman927 won by resignation"]

1. e4 {[%clk 0:03:00.9]} 1... c5 {[%clk 0:02:59.5]} 2. Nf3 {[%clk 0:02:58.7]}
2... e6 {[%clk 0:02:59.8]} 3. d4 {[%clk 0:02:57.6]} 3... cxd4 {[%clk 0:03:00.7]}
4. Nxd4 {[%clk 0:02:58.1]} 4... Nf6 {[%clk 0:03:01.1]} 5. Nc3 {[%clk 0:02:57]}
5... Nc6 {[%clk 0:03:01.7]} 6. Ndb5 {[%clk 0:02:45.3]} 6... d6 {[%clk
0:03:01.4]} 7. Bf4 {[%clk 0:02:44.7]} 7... e5 {[%clk 0:03:02.1]} 8. Bg5 {[%clk
0:02:44.5]} 8... a6 {[%clk 0:03:02.8]} 9. Na3 {[%clk 0:02:44.7]} 9... b5 {[%clk
0:03:02.7]} 10. Bxf6 {[%clk 0:02:45]} 10... gxf6 {[%clk 0:03:03.6]} 11. Nd5
{[%clk 0:02:45.4]} 11... Bg7 {[%clk 0:03:03.8]} 12. Bd3 {[%clk 0:02:38.6]} 12...
Be6 {[%clk 0:02:49.3]} 13. c3 {[%clk 0:02:37.5]} 13... Ne7 {[%clk 0:02:42.4]}
14. Nxe7 {[%clk 0:02:25.4]} 14... Qxe7 {[%clk 0:02:42.4]} 15. Nc2 {[%clk
0:02:25.8]} 15... O-O {[%clk 0:01:35.7]} 16. Ne3 {[%clk 0:02:24.6]} 16... Rfd8
{[%clk 0:01:32.2]} 17. Qh5 {[%clk 0:02:18.9]} 17... Rac8 {[%clk 0:01:21.1]} 18.
O-O {[%clk 0:02:11.7]} 18... Rc5 {[%clk 0:01:15.2]} 19. a4 {[%clk 0:01:47.6]}
19... d5 {[%clk 0:01:01.4]} 20. exd5 {[%clk 0:01:46.3]} 20... Bxd5 {[%clk
0:00:45.7]} 21. Bxh7+ {[%clk 0:01:40.9]} 21... Kf8 {[%clk 0:00:44.6]} 22. Nf5
{[%clk 0:01:28.7]} 22... Qb7 {[%clk 0:00:42]} 23. Qg4 {[%clk 0:01:25]} 23... Ke8
{[%clk 0:00:29]} 24. Nxg7+ {[%clk 0:01:24.5]} 24... Ke7 {[%clk 0:00:28.6]} 25.
Nf5+ {[%clk 0:01:24.1]} 25... Kd7 {[%clk 0:00:28]} 26. Nd4+ {[%clk 0:01:13.1]}
26... Kc7 {[%clk 0:00:26.4]} 27. axb5 {[%clk 0:01:13.1]} 27... axb5 {[%clk
0:00:22.6]} 28. b4 {[%clk 0:01:08.7]} 28... Rc4 {[%clk 0:00:19.9]} 29. Qg3
{[%clk 0:00:59.4]} 29... Rh8 {[%clk 0:00:16.2]} 30. Ra7 {[%clk 0:00:50]} 30...
Rxh7 {[%clk 0:00:11.7]} 31. Rxb7+ {[%clk 0:00:50.1]} 31... Kxb7 {[%clk
0:00:11.9]} 32. Nxb5 {[%clk 0:00:47.9]} 32... Rh6 {[%clk 0:00:10]} 33. Nd6+
{[%clk 0:00:48.2]} 33... Kc6 {[%clk 0:00:10.4]} 34. Nxc4 {[%clk 0:00:48.7]}
34... Rg6 {[%clk 0:00:11.3]} 35. Qxg6 {[%clk 0:00:46.7]} 35... fxg6 {[%clk
0:00:12.2]} 36. Ne3 {[%clk 0:00:47]} 36... Be4 {[%clk 0:00:10.8]} 37. f3 {[%clk
0:00:46.7]} 37... Bd3 {[%clk 0:00:11]} 38. Rd1 {[%clk 0:00:47.1]} 38... Ba6
{[%clk 0:00:08.7]} 39. c4 {[%clk 0:00:46.7]} 39... Bc8 {[%clk 0:00:09.3]} 40.
b5+ {[%clk 0:00:47.1]} 40... Kc5 {[%clk 0:00:09.1]} 41. Rd5+ {[%clk 0:00:47.1]}
41... Kb6 {[%clk 0:00:08.1]} 42. Rd6+ {[%clk 0:00:47.5]} 1-0

[Event "Late-Titled-Tuesday-Blitz-December-26-2023"]
[Site "Chess.com"]
[Date "2023.12.26"]
[Round "9"]
[White "Sacbutt"]
[Black "Championnn-9"]
[Result "0-1"]
[WhiteElo "2362"]
[BlackElo "2516"]
[TimeControl "180+1"]
[EndTime "15:43:02 PST"]
[Termination "Championnn-9 won on time"]

1. e4 {[%clk 0:03:00.9]} 1... c6 {[%clk 0:02:52.4]} 2. d4 {[%clk 0:02:59.1]}
2... d5 {[%clk 0:02:51.1]} 3. Nc3 {[%clk 0:03:00]} 3... dxe4 {[%clk 0:02:51.2]}
4. Nxe4 {[%clk 0:03:00.9]} 4... Nf6 {[%clk 0:02:51.2]} 5. Nxf6+ {[%clk
0:03:00.4]} 5... gxf6 {[%clk 0:02:51]} 6. Nf3 {[%clk 0:03:01.3]} 6... Rg8 {[%clk
0:02:48.9]} 7. Bf4 {[%clk 0:02:55.5]} 7... Bf5 {[%clk 0:02:47]} 8. Bg3 {[%clk
0:02:44.2]} 8... Qb6 {[%clk 0:02:33.2]} 9. Qc1 {[%clk 0:02:26.2]} 9... Nd7
{[%clk 0:02:28.3]} 10. Be2 {[%clk 0:02:23.4]} 10... h5 {[%clk 0:02:22.8]} 11.
O-O {[%clk 0:02:17.8]} 11... O-O-O {[%clk 0:02:18.6]} 12. a4 {[%clk 0:02:16]}
12... a5 {[%clk 0:02:16.7]} 13. c3 {[%clk 0:02:08.5]} 13... e5 {[%clk
0:02:10.2]} 14. dxe5 {[%clk 0:01:47]} 14... fxe5 {[%clk 0:02:05.7]} 15. Nxe5
{[%clk 0:01:43]} 15... Nxe5 {[%clk 0:02:05]} 16. Bxe5 {[%clk 0:01:42.2]} 16...
Be4 {[%clk 0:02:03.6]} 17. g3 {[%clk 0:01:29]} 17... Be7 {[%clk 0:01:33.7]} 18.
b4 {[%clk 0:01:24.7]} 18... h4 {[%clk 0:01:29.2]} 19. bxa5 {[%clk 0:01:21.3]}
19... Qxa5 {[%clk 0:01:20.5]} 20. Qf4 {[%clk 0:01:15.8]} 20... f5 {[%clk
0:01:07.8]} 21. Bc4 {[%clk 0:01:05.1]} 21... Rg6 {[%clk 0:01:00.6]} 22. Rfd1
{[%clk 0:01:02.6]} 22... hxg3 {[%clk 0:00:57.2]} 23. hxg3 {[%clk 0:00:45.3]}
23... Bg5 {[%clk 0:00:55.9]} 24. Qxg5 {[%clk 0:00:27.2]} 24... Rxg5 {[%clk
0:00:30.8]} 25. Be6+ {[%clk 0:00:25.7]} 25... Rd7 {[%clk 0:00:31.5]} 26. Bxd7+
{[%clk 0:00:21.3]} 26... Kd8 {[%clk 0:00:31.3]} 27. Bf6+ {[%clk 0:00:20.6]}
27... Kc7 {[%clk 0:00:31.2]} 28. Bxg5 {[%clk 0:00:20]} 28... Qxc3 {[%clk
0:00:30.7]} 29. Bf4+ {[%clk 0:00:17.4]} 29... Kb6 {[%clk 0:00:31]} 30. g4 {[%clk
0:00:13.8]} 30... Qh3 {[%clk 0:00:28.1]} 31. Rdb1+ {[%clk 0:00:08.2]} 31... Ka6
{[%clk 0:00:25.2]} 32. f3 {[%clk 0:00:04.4]} 32... Qxf3 {[%clk 0:00:24.7]} 0-1

[Event "Late-Titled-Tuesday-Blitz-December-26-2023"]
[Site "Chess.com"]
[Date "2023.12.26"]
[Round "9"]
[White "Inepton_Fermion"]
[Black "campochess"]
[Result "1-0"]
[WhiteElo "2399"]
[BlackElo "2163"]
[TimeControl "180+1"]
[EndTime "15:43:02 PST"]
[Termination "Inepton_Fermion won by resignation"]

1. e4 {[%clk 0:03:00.9]} 1... c5 {[%clk 0:02:58.3]} 2. Nf3 {[%clk 0:03:00.6]}
2... Nc6 {[%clk 0:02:57.9]} 3. d4 {[%clk 0:03:00.9]} 3... cxd4 {[%clk 0:02:58]}
4. Nxd4 {[%clk 0:03:01.8]} 4... e5 {[%clk 0:02:57.4]} 5. Nb5 {[%clk 0:03:01.5]}
5... a6 {[%clk 0:02:57.6]} 6. Nd6+ {[%clk 0:03:00.8]} 6... Bxd6 {[%clk
0:02:57.5]} 7. Qxd6 {[%clk 0:03:01.7]} 7... Qe7 {[%clk 0:02:57.6]} 8. Qd2 {[%clk
0:02:39.6]} 8... Nf6 {[%clk 0:02:56.4]} 9. Nc3 {[%clk 0:02:28.1]} 9... d6 {[%clk
0:02:55.8]} 10. Bc4 {[%clk 0:02:21.8]} 10... Be6 {[%clk 0:02:55]} 11. Bb3 {[%clk
0:02:12.3]} 11... Nd4 {[%clk 0:02:51.9]} 12. O-O {[%clk 0:02:09.9]} 12... O-O
{[%clk 0:02:45.4]} 13. f4 {[%clk 0:02:03.6]} 13... Rac8 {[%clk 0:02:39.2]} 14.
Qe1 {[%clk 0:01:55.2]} 14... Bc4 {[%clk 0:02:12.5]} 15. Bxc4 {[%clk 0:01:40.6]}
15... Rxc4 {[%clk 0:02:10.4]} 16. fxe5 {[%clk 0:01:21.5]} 16... Qxe5 {[%clk
0:02:01.9]} 17. Bf4 {[%clk 0:01:19.4]} 17... Qc5 {[%clk 0:02:00.3]} 18. Be3
{[%clk 0:01:02.8]} 18... Qb4 {[%clk 0:01:51.8]} 19. Bxd4 {[%clk 0:00:52.5]}
19... Rxd4 {[%clk 0:01:50.3]} 20. Rxf6 {[%clk 0:00:48.5]} 20... gxf6 {[%clk
0:01:44.3]} 21. Qg3+ {[%clk 0:00:48.9]} 21... Kh8 {[%clk 0:01:43.8]} 22. Nd5
{[%clk 0:00:49.5]} 22... Rxd5 {[%clk 0:01:38.7]} 23. exd5 {[%clk 0:00:49.5]}
23... Qd4+ {[%clk 0:01:36.8]} 24. Qf2 {[%clk 0:00:49.8]} 24... Qxf2+ {[%clk
0:01:31]} 25. Kxf2 {[%clk 0:00:50.7]} 25... Rc8 {[%clk 0:01:30.7]} 26. c3 {[%clk
0:00:51]} 26... Rc5 {[%clk 0:01:30.3]} 27. Rd1 {[%clk 0:00:45.8]} 27... Kg7
{[%clk 0:01:30]} 28. Ke3 {[%clk 0:00:45.8]} 28... Rc4 {[%clk 0:01:29.1]} 29. Rd4
{[%clk 0:00:41.3]} 29... Rc7 {[%clk 0:01:26.9]} 30. Rg4+ {[%clk 0:00:39.5]}
30... Kf8 {[%clk 0:01:24.3]} 31. Kd4 {[%clk 0:00:33.4]} 31... Re7 {[%clk
0:01:23.8]} 32. Re4 {[%clk 0:00:33.5]} 32... Re5 {[%clk 0:01:20.4]} 33. c4
{[%clk 0:00:20.4]} 33... b6 {[%clk 0:01:18.7]} 34. b4 {[%clk 0:00:19.5]} 34...
Rg5 {[%clk 0:01:17.5]} 35. g3 {[%clk 0:00:18.7]} 35... Rf5 {[%clk 0:01:16.9]}
36. Rf4 {[%clk 0:00:18.2]} 36... Re5 {[%clk 0:01:12.2]} 37. Rxf6 {[%clk
0:00:18.2]} 37... Ke7 {[%clk 0:01:12.4]} 38. Rf4 {[%clk 0:00:17.3]} 38... Rh5
{[%clk 0:01:10.6]} 39. Rh4 {[%clk 0:00:16.4]} 39... Rf5 {[%clk 0:01:03.2]} 40.
Re4+ {[%clk 0:00:09.9]} 40... Kd7 {[%clk 0:01:02]} 41. Rf4 {[%clk 0:00:10]}
41... Rxf4+ {[%clk 0:00:58.8]} 42. gxf4 {[%clk 0:00:09.9]} 42... f5 {[%clk
0:00:59]} 43. c5 {[%clk 0:00:10.1]} 43... bxc5+ {[%clk 0:00:57.1]} 44. bxc5
{[%clk 0:00:11]} 44... dxc5+ {[%clk 0:00:56.5]} 45. Kxc5 {[%clk 0:00:11.9]}
45... a5 {[%clk 0:00:56.6]} 46. a4 {[%clk 0:00:11.7]} 46... Kc7 {[%clk
0:00:55.8]} 47. d6+ {[%clk 0:00:12]} 47... Kd7 {[%clk 0:00:55.9]} 48. Kd5 {[%clk
0:00:12.5]} 48... Kd8 {[%clk 0:00:56.1]} 49. Ke6 {[%clk 0:00:12.3]} 49... Ke8
{[%clk 0:00:56.2]} 50. Kxf5 {[%clk 0:00:11.8]} 1-0

[Event "Late-Titled-Tuesday-Blitz-December-26-2023"]
[Site "Chess.com"]
[Date "2023.12.26"]
[Round "9"]
[White "WindWhistler11"]
[Black "Alexei_Gubajdullin"]
[Result "0-1"]
[WhiteElo "2485"]
[BlackElo "2603"]
[TimeControl "180+1"]
[EndTime "15:43:05 PST"]
[Termination "Alexei_Gubajdullin won on time"]

1. Nf3 {[%clk 0:02:54.6]} 1... Nf6 {[%clk 0:02:59.3]} 2. c4 {[%clk 0:02:55.2]}
2... g6 {[%clk 0:02:59.1]} 3. g3 {[%clk 0:02:55.9]} 3... Bg7 {[%clk 0:02:59.2]}
4. Bg2 {[%clk 0:02:56.6]} 4... O-O {[%clk 0:02:59]} 5. O-O {[%clk 0:02:57.1]}
5... d6 {[%clk 0:02:59.4]} 6. Nc3 {[%clk 0:02:57.4]} 6... Nbd7 {[%clk
0:02:59.6]} 7. Rb1 {[%clk 0:02:57.9]} 7... e5 {[%clk 0:02:59.7]} 8. b4 {[%clk
0:02:56.5]} 8... h5 {[%clk 0:02:59.4]} 9. d3 {[%clk 0:02:48]} 9... a5 {[%clk
0:02:53.2]} 10. a3 {[%clk 0:02:45.5]} 10... axb4 {[%clk 0:02:53.1]} 11. axb4
{[%clk 0:02:45.3]} 11... Nh7 {[%clk 0:02:52.7]} 12. d4 {[%clk 0:02:26.5]} 12...
exd4 {[%clk 0:02:51]} 13. Nxd4 {[%clk 0:02:26.5]} 13... h4 {[%clk 0:02:51.1]}
14. Be3 {[%clk 0:02:07.3]} 14... Ne5 {[%clk 0:02:49.1]} 15. c5 {[%clk
0:02:00.8]} 15... Ng4 {[%clk 0:02:45.4]} 16. c6 {[%clk 0:01:41.9]} 16... bxc6
{[%clk 0:02:41.9]} 17. Nxc6 {[%clk 0:01:34.4]} 17... Nxe3 {[%clk 0:02:38.1]} 18.
Nxd8 {[%clk 0:01:03.3]} 18... Nxd1 {[%clk 0:02:37]} 19. Nxd1 {[%clk 0:01:03.6]}
19... Ra2 {[%clk 0:02:29.9]} 20. Nc6 {[%clk 0:00:55.2]} 20... Rxe2 {[%clk
0:02:28.8]} 21. Bf3 {[%clk 0:00:52.1]} 21... Ree8 {[%clk 0:02:26.8]} 22. Ne3
{[%clk 0:00:52.4]} 22... Ng5 {[%clk 0:02:25.9]} 23. Bd5 {[%clk 0:00:40.3]} 23...
Bh3 {[%clk 0:02:01.5]} 24. Rfc1 {[%clk 0:00:37.8]} 24... Be6 {[%clk 0:01:55.4]}
25. gxh4 {[%clk 0:00:33.9]} 25... Bxd5 {[%clk 0:01:53.6]} 26. Nxd5 {[%clk
0:00:34.8]} 26... Nf3+ {[%clk 0:01:53.4]} 27. Kf1 {[%clk 0:00:31.3]} 27... Nd2+
{[%clk 0:01:52.3]} 28. Kg2 {[%clk 0:00:31.6]} 28... Nxb1 {[%clk 0:01:51]} 29.
Rxb1 {[%clk 0:00:30.9]} 29... Re2 {[%clk 0:01:36.9]} 30. b5 {[%clk 0:00:27.8]}
30... Ra8 {[%clk 0:01:32.5]} 31. Nxc7 {[%clk 0:00:20.8]} 31... Raa2 {[%clk
0:01:32.2]} 32. Rf1 {[%clk 0:00:20.3]} 32... Rab2 {[%clk 0:01:31.9]} 33. Ne7+
{[%clk 0:00:16.5]} 33... Kh7 {[%clk 0:01:28.4]} 34. Ned5 {[%clk 0:00:17.1]}
34... Bd4 {[%clk 0:01:26.2]} 35. Kf3 {[%clk 0:00:13.3]} 35... f5 {[%clk
0:01:24.7]} 36. Ne3 {[%clk 0:00:09.3]} 36... Bxe3 {[%clk 0:01:22.3]} 37. fxe3
{[%clk 0:00:10.2]} 37... Rec2 {[%clk 0:01:20.4]} 38. Ne8 {[%clk 0:00:08.3]}
38... Rxb5 {[%clk 0:01:18]} 39. Nxd6 {[%clk 0:00:08.4]} 39... Rbb2 {[%clk
0:01:17.9]} 40. Nf7 {[%clk 0:00:06.8]} 40... Rxh2 {[%clk 0:01:16.2]} 41. Rd1
{[%clk 0:00:05.2]} 41... Rh3+ {[%clk 0:01:13.2]} 42. Kf4 {[%clk 0:00:04.8]}
42... Rxh4+ {[%clk 0:01:13.2]} 43. Kg5 {[%clk 0:00:04]} 43... Rg4+ {[%clk
0:01:12.8]} 44. Kf6 {[%clk 0:00:03.9]} 44... Rb6+ {[%clk 0:01:12.6]} 45. Nd6
{[%clk 0:00:01.4]} 45... f4 {[%clk 0:01:06.4]} 46. Kf7 {[%clk 0:00:01.1]} 46...
g5 {[%clk 0:01:02.6]} 0-1

[Event "Late-Titled-Tuesday-Blitz-December-26-2023"]
[Site "Chess.com"]
[Date "2023.12.26"]
[Round "9"]
[White "GP9isback23"]
[Black "GABUZYAN_CHESSMOOD"]
[Result "0-1"]
[WhiteElo "2641"]
[BlackElo "2903"]
[TimeControl "180+1"]
[EndTime "15:43:08 PST"]
[Termination "GABUZYAN_CHESSMOOD won by resignation"]

1. d4 {[%clk 0:02:58]} 1... Nf6 {[%clk 0:02:59.8]} 2. Nf3 {[%clk 0:02:57.8]}
2... b6 {[%clk 0:02:58.4]} 3. g3 {[%clk 0:02:51]} 3... Bb7 {[%clk 0:02:58.6]} 4.
Bg2 {[%clk 0:02:51.7]} 4... e6 {[%clk 0:02:57.4]} 5. O-O {[%clk 0:02:52]} 5...
Be7 {[%clk 0:02:57]} 6. c4 {[%clk 0:02:52]} 6... O-O {[%clk 0:02:56.6]} 7. Nc3
{[%clk 0:02:41.4]} 7... d5 {[%clk 0:02:56.1]} 8. Ne5 {[%clk 0:02:37.7]} 8...
Nbd7 {[%clk 0:02:55.8]} 9. Bf4 {[%clk 0:02:35.8]} 9... c6 {[%clk 0:02:55.3]} 10.
Nxd7 {[%clk 0:02:18.2]} 10... Qxd7 {[%clk 0:02:55.1]} 11. cxd5 {[%clk
0:02:14.3]} 11... cxd5 {[%clk 0:02:56]} 12. Rc1 {[%clk 0:02:13.1]} 12... b5
{[%clk 0:02:48.3]} 13. Nb1 {[%clk 0:01:49.6]} 13... Rfc8 {[%clk 0:02:45]} 14.
Qd3 {[%clk 0:01:44.5]} 14... b4 {[%clk 0:02:42.5]} 15. Nd2 {[%clk 0:01:36.6]}
15... a5 {[%clk 0:02:42.3]} 16. Nb3 {[%clk 0:01:33.7]} 16... Ba6 {[%clk
0:02:36.9]} 17. Qd2 {[%clk 0:01:31.7]} 17... Bc4 {[%clk 0:02:33.2]} 18. Na1
{[%clk 0:01:18.7]} 18... Ne4 {[%clk 0:02:28.4]} 19. Bxe4 {[%clk 0:01:05]} 19...
dxe4 {[%clk 0:02:29.3]} 20. b3 {[%clk 0:01:02]} 20... Bd5 {[%clk 0:02:27.1]} 21.
Be3 {[%clk 0:01:02.4]} 21... a4 {[%clk 0:02:22.1]} 22. Rxc8+ {[%clk 0:01:00.8]}
22... Rxc8 {[%clk 0:02:21.7]} 23. Rc1 {[%clk 0:01:01.6]} 23... Ra8 {[%clk
0:02:14.3]} 24. Qc2 {[%clk 0:00:52.2]} 24... h5 {[%clk 0:02:02.9]} 25. h4 {[%clk
0:00:45.4]} 25... Bd6 {[%clk 0:02:00.5]} 26. Qb2 {[%clk 0:00:35.4]} 26... Qb5
{[%clk 0:02:00.3]} 27. Kf1 {[%clk 0:00:33.7]} 27... Qa6 {[%clk 0:01:54.5]} 28.
Nc2 {[%clk 0:00:27.6]} 28... axb3 {[%clk 0:01:43.1]} 29. axb3 {[%clk 0:00:28.5]}
29... Qa2 {[%clk 0:01:43.3]} 30. Rb1 {[%clk 0:00:26.8]} 30... Qa6 {[%clk
0:01:37]} 31. Ra1 {[%clk 0:00:24.2]} 31... Qb7 {[%clk 0:01:37.1]} 32. Rxa8+
{[%clk 0:00:24.1]} 32... Qxa8 {[%clk 0:01:38]} 33. Bd2 {[%clk 0:00:21.9]} 33...
e3 {[%clk 0:01:19]} 34. Nxe3 {[%clk 0:00:20.5]} 34... Bxb3 {[%clk 0:01:17.9]}
35. Kg1 {[%clk 0:00:16.4]} 35... Qa3 {[%clk 0:01:14.6]} 36. Qb1 {[%clk
0:00:13.6]} 36... Ba2 {[%clk 0:01:14.9]} 37. Qc1 {[%clk 0:00:08.8]} 37... Qa6
{[%clk 0:01:08.3]} 38. Kf1 {[%clk 0:00:08.1]} 38... Qb7 {[%clk 0:01:04.8]} 39.
Kg1 {[%clk 0:00:06.8]} 39... b3 {[%clk 0:01:04.1]} 40. Qb2 {[%clk 0:00:07.1]}
40... Ba3 {[%clk 0:01:00.3]} 41. Qxa3 {[%clk 0:00:02.7]} 41... b2 {[%clk
0:01:00.6]} 42. Qxa2 {[%clk 0:00:02.7]} 42... b1=Q+ {[%clk 0:01:00.8]} 43. Qxb1
{[%clk 0:00:03.1]} 43... Qxb1+ {[%clk 0:01:01.1]} 44. Nf1 {[%clk 0:00:03.7]}
44... f6 {[%clk 0:00:57.5]} 45. Kg2 {[%clk 0:00:03.2]} 45... Qe4+ {[%clk
0:00:56.8]} 46. Kg1 {[%clk 0:00:03.9]} 46... Qxd4 {[%clk 0:00:56.9]} 47. Be3
{[%clk 0:00:04.8]} 47... Qc4 {[%clk 0:00:56.5]} 48. Kg2 {[%clk 0:00:03.5]} 48...
Qxe2 {[%clk 0:00:56.5]} 49. Kg1 {[%clk 0:00:04.4]} 0-1

[Event "Late-Titled-Tuesday-Blitz-December-26-2023"]
[Site "Chess.com"]
[Date "2023.12.26"]
[Round "9"]
[White "karinachess1"]
[Black "carokannlover213"]
[Result "1-0"]
[WhiteElo "2576"]
[BlackElo "2676"]
[TimeControl "180+1"]
[EndTime "15:43:11 PST"]
[Termination "karinachess1 won on time"]

1. d4 {[%clk 0:03:00.9]} 1... Nf6 {[%clk 0:02:53.8]} 2. c4 {[%clk 0:03:00.9]}
2... e6 {[%clk 0:02:53.4]} 3. Nc3 {[%clk 0:03:00.8]} 3... Bb4 {[%clk 0:02:53]}
4. a3 {[%clk 0:03:01]} 4... Bxc3+ {[%clk 0:02:53]} 5. bxc3 {[%clk 0:03:01.9]}
5... O-O {[%clk 0:02:53.3]} 6. e3 {[%clk 0:03:02.4]} 6... c5 {[%clk 0:02:52.8]}
7. Bd3 {[%clk 0:03:02.7]} 7... Nc6 {[%clk 0:02:51.6]} 8. Ne2 {[%clk 0:03:02.8]}
8... b6 {[%clk 0:02:49.5]} 9. O-O {[%clk 0:03:02.4]} 9... Ne8 {[%clk 0:02:50]}
10. e4 {[%clk 0:02:57.5]} 10... d6 {[%clk 0:02:46.4]} 11. Be3 {[%clk 0:02:49.6]}
11... e5 {[%clk 0:02:45.7]} 12. d5 {[%clk 0:02:47.1]} 12... Na5 {[%clk
0:02:41.9]} 13. f4 {[%clk 0:02:45.1]} 13... Ba6 {[%clk 0:02:40.8]} 14. Qa4
{[%clk 0:02:34.3]} 14... f6 {[%clk 0:02:34.1]} 15. Ng3 {[%clk 0:02:32.1]} 15...
Rf7 {[%clk 0:02:30.8]} 16. Rf2 {[%clk 0:02:15]} 16... Qd7 {[%clk 0:02:24.1]} 17.
Qc2 {[%clk 0:02:07.5]} 17... Bxc4 {[%clk 0:02:19.4]} 18. Raf1 {[%clk 0:02:06.8]}
18... Qb5 {[%clk 0:02:10.3]} 19. Bxc4 {[%clk 0:02:05.3]} 19... Nxc4 {[%clk
0:02:11.2]} 20. Bc1 {[%clk 0:02:04.9]} 20... Qd7 {[%clk 0:02:00.5]} 21. Nf5
{[%clk 0:02:00.6]} 21... Rb8 {[%clk 0:01:54.4]} 22. Qe2 {[%clk 0:02:00.1]} 22...
Kh8 {[%clk 0:01:51.7]} 23. Qxc4 {[%clk 0:01:59.7]} 23... g6 {[%clk 0:01:36.3]}
24. Ne3 {[%clk 0:01:54.9]} 24... b5 {[%clk 0:01:29.7]} 25. Qd3 {[%clk
0:01:55.2]} 25... c4 {[%clk 0:01:28.6]} 26. Qe2 {[%clk 0:01:52.8]} 26... a5
{[%clk 0:01:28.5]} 27. Ng4 {[%clk 0:01:46.7]} 27... Qe7 {[%clk 0:01:24.8]} 28.
Nh6 {[%clk 0:01:30]} 28... Rf8 {[%clk 0:01:21.3]} 29. h4 {[%clk 0:01:28.7]}
29... Qg7 {[%clk 0:01:15.6]} 30. fxe5 {[%clk 0:01:22.6]} 30... dxe5 {[%clk
0:01:13]} 31. h5 {[%clk 0:01:22.5]} 31... Nd6 {[%clk 0:01:04]} 32. Ng4 {[%clk
0:01:22.7]} 32... gxh5 {[%clk 0:00:55.4]} 33. Nxf6 {[%clk 0:01:22.5]} 33... Qg6
{[%clk 0:00:51.9]} 34. Nd7 {[%clk 0:01:00.7]} 34... Rxf2 {[%clk 0:00:48.6]} 35.
Rxf2 {[%clk 0:01:01.2]} 35... Rd8 {[%clk 0:00:41.2]} 36. Nxe5 {[%clk 0:01:00.7]}
36... Qg7 {[%clk 0:00:31.7]} 37. Nc6 {[%clk 0:00:55.7]} 37... Re8 {[%clk
0:00:29.6]} 38. e5 {[%clk 0:00:56]} 38... h4 {[%clk 0:00:27.2]} 39. Qh5 {[%clk
0:00:54.2]} 39... Rf8 {[%clk 0:00:24.1]} 40. Bh6 {[%clk 0:00:52.8]} 40... Rxf2
{[%clk 0:00:22.2]} 41. Bxg7+ {[%clk 0:00:52.4]} 41... Kxg7 {[%clk 0:00:22.8]}
42. Kxf2 {[%clk 0:00:52.5]} 42... Ne4+ {[%clk 0:00:22.5]} 43. Ke3 {[%clk
0:00:52.9]} 43... Ng3 {[%clk 0:00:22.4]} 44. Qg5+ {[%clk 0:00:51.2]} 44... Kf7
{[%clk 0:00:22.8]} 45. e6+ {[%clk 0:00:50.8]} 45... Kf8 {[%clk 0:00:21.5]} 46.
Qf6+ {[%clk 0:00:51]} 46... Kg8 {[%clk 0:00:02.3]} 47. Qf7+ {[%clk 0:00:51.9]}
1-0

[Event "Late-Titled-Tuesday-Blitz-December-26-2023"]
[Site "Chess.com"]
[Date "2023.12.26"]
[Round "9"]
[White "NoHeThTo"]
[Black "prime-morty"]
[Result "0-1"]
[WhiteElo "2694"]
[BlackElo "2587"]
[TimeControl "180+1"]
[EndTime "15:43:15 PST"]
[Termination "prime-morty won by resignation"]

1. d4 {[%clk 0:03:00.9]} 1... d6 {[%clk 0:02:59.9]} 2. Nc3 {[%clk 0:03:00.3]}
2... g6 {[%clk 0:03:00.4]} 3. e4 {[%clk 0:02:52.7]} 3... Bg7 {[%clk 0:02:59.8]}
4. Nf3 {[%clk 0:02:53.4]} 4... a6 {[%clk 0:03:00.2]} 5. a4 {[%clk 0:02:52.5]}
5... Nc6 {[%clk 0:02:59.8]} 6. h3 {[%clk 0:02:51.9]} 6... e6 {[%clk 0:02:59.1]}
7. Be3 {[%clk 0:02:51.2]} 7... d5 {[%clk 0:02:59.1]} 8. e5 {[%clk 0:02:50.9]}
8... Nge7 {[%clk 0:02:59.5]} 9. g4 {[%clk 0:02:48.3]} 9... h6 {[%clk 0:02:59.3]}
10. Qd2 {[%clk 0:02:48]} 10... Na5 {[%clk 0:02:56.1]} 11. b3 {[%clk 0:02:44.1]}
11... b6 {[%clk 0:02:56.4]} 12. Ne2 {[%clk 0:02:34.2]} 12... Bb7 {[%clk
0:02:52.6]} 13. Bg2 {[%clk 0:02:31.7]} 13... Rc8 {[%clk 0:02:51.2]} 14. Ng3
{[%clk 0:02:28.3]} 14... c5 {[%clk 0:02:50.9]} 15. O-O {[%clk 0:02:24]} 15...
cxd4 {[%clk 0:02:48.6]} 16. Bxd4 {[%clk 0:02:21.8]} 16... Nac6 {[%clk
0:02:44.5]} 17. Bb2 {[%clk 0:02:21.8]} 17... Qc7 {[%clk 0:02:35.8]} 18. Rfe1
{[%clk 0:02:20.5]} 18... O-O {[%clk 0:02:29.4]} 19. h4 {[%clk 0:02:17.9]} 19...
Rfd8 {[%clk 0:02:23.1]} 20. Bf1 {[%clk 0:02:10.2]} 20... d4 {[%clk 0:02:22.7]}
21. Bd3 {[%clk 0:01:37.6]} 21... Nxe5 {[%clk 0:02:20.4]} 22. Nxe5 {[%clk
0:01:36.8]} 22... Bxe5 {[%clk 0:02:19.8]} 23. Rxe5 {[%clk 0:01:20.8]} 23... Qxe5
{[%clk 0:02:19.2]} 24. Qxh6 {[%clk 0:01:20.6]} 24... Qh8 {[%clk 0:02:03.2]} 25.
Qg5 {[%clk 0:01:18.6]} 25... f6 {[%clk 0:02:00.3]} 26. Qf4 {[%clk 0:01:07.2]}
26... Qxh4 {[%clk 0:01:55.6]} 27. Re1 {[%clk 0:00:58.5]} 27... e5 {[%clk
0:01:42.4]} 28. Qd2 {[%clk 0:00:57]} 28... Qxg4 {[%clk 0:01:38.1]} 29. Qh6
{[%clk 0:00:50.7]} 29... Qf3 {[%clk 0:01:26.5]} 30. Kf1 {[%clk 0:00:43.6]} 30...
Qg2+ {[%clk 0:01:19.2]} 31. Ke2 {[%clk 0:00:43.5]} 31... Bf3+ {[%clk 0:01:19.4]}
32. Kd2 {[%clk 0:00:43.5]} 32... Qxf2+ {[%clk 0:01:19.8]} 33. Ne2 {[%clk
0:00:41.9]} 33... Qe3+ {[%clk 0:01:15.8]} 34. Qxe3 {[%clk 0:00:41.5]} 34...
dxe3+ {[%clk 0:01:16.7]} 35. Kxe3 {[%clk 0:00:42.4]} 35... Bxe2 {[%clk
0:01:14.5]} 36. Rxe2 {[%clk 0:00:40.5]} 36... Nd5+ {[%clk 0:01:14.3]} 37. Ke4
{[%clk 0:00:33.1]} 37... Nf4 {[%clk 0:01:13.6]} 38. Rf2 {[%clk 0:00:32.5]} 38...
Nxd3 {[%clk 0:01:12.2]} 39. cxd3 {[%clk 0:00:33.4]} 39... Kf7 {[%clk 0:01:09.3]}
40. Bxe5 {[%clk 0:00:32.3]} 40... Rc6 {[%clk 0:01:06.6]} 41. d4 {[%clk
0:00:25.2]} 41... Re6 {[%clk 0:01:01.4]} 42. b4 {[%clk 0:00:13.1]} 42... Ke7
{[%clk 0:00:58.8]} 43. Rh2 {[%clk 0:00:12.3]} 43... fxe5 {[%clk 0:00:58.8]} 44.
Rh7+ {[%clk 0:00:12.6]} 44... Kd6 {[%clk 0:00:58.1]} 45. d5 {[%clk 0:00:11.9]}
45... Rf6 {[%clk 0:00:57.8]} 46. Rb7 {[%clk 0:00:12.6]} 46... Rf4+ {[%clk
0:00:57.8]} 47. Ke3 {[%clk 0:00:12.9]} 47... Rxb4 {[%clk 0:00:58.2]} 48. Rg7
{[%clk 0:00:11.7]} 48... Kxd5 {[%clk 0:00:58]} 49. Rxg6 {[%clk 0:00:11.7]} 0-1